fUSD/lending_fUSD_20241215
["ID","MTS","AMOUNT","RATE_DAILY","PERIOD"]
[345470279,1734277845110,-500.0,0.00019998,3]
[345470280,1734277845119,-497.47,0.00019998,3]
[345470281,1734277845130,-325.01,0.00019998,3]
[345470282,1734277845139,-407.27,0.00019998,3]
[345470283,1734277845148,-500.0,0.00019998,3]
[345470284,1734277845157,-500.0,0.00019998,3]
[345470285,1734277845168,-500.0,0.00019998,3]
[345470286,1734277845177,-500.0,0.00019998,3]
[345470287,1734277845186,-500.0,0.00019998,3]
[345470288,1734277845196,-597.39,0.00019998,3]
[345470289,1734277845206,-500.0,0.00019998,3]
[345470290,1734277845217,-500.0,0.00019998,3]
[345470291,1734277845227,-1086.53,0.00019998,3]
[345470292,1734277845236,-1086.53,0.00019998,3]
[345470293,1734277845246,-466.61,0.00019998,3]
[345470294,1734277845256,-245.42,0.00019998,3]
[345470295,1734277845266,-500.0,0.00019998,3]
[345470296,1734277845276,-480.21,0.00019998,3]
[345470297,1734277845286,-404.53,0.00019998,3]
[345470298,1734277845295,-500.0,0.00019998,3]
[345470299,1734277845306,-161.91,0.00019998,3]
[345470300,1734277845316,-500.0,0.00019998,3]
[345470301,1734277845332,-500.0,0.00019998,3]
[345470302,1734277845344,-500.0,0.00019998,3]
[345470303,1734277845355,-500.0,0.00019998,3]
[345470304,1734277845367,-500.0,0.00019998,3]
[345470305,1734277845378,-500.0,0.00019998,3]
[345470306,1734277845387,-500.0,0.00019998,3]
[345470307,1734277845397,-630.0,0.00019998,3]
[345470308,1734277845407,-184.58,0.00019998,3]
[345470309,1734277845418,-500.0,0.00019998,3]
[345470310,1734277845428,-500.0,0.00019998,3]
[345470311,1734277845437,-311.5,0.00019998,3]
[345470313,1734277845446,-386.15,0.00019998,3]
[345470315,1734277845456,-500.0,0.00019998,3]
[345470316,1734277845465,-500.0,0.00019998,3]
[345470317,1734277845475,-303.08,0.00019998,3]
[345470319,1734277845484,-500.0,0.00019998,3]
[345470320,1734277845494,-500.0,0.00019998,3]
[345470321,1734277845504,-669.76,0.00019998,3]
[345470322,1734277845514,-500.0,0.00019998,3]
[345470323,1734277845529,-500.0,0.00019998,3]
[345470324,1734277845539,-235.01,0.00019998,3]
[345470325,1734277845550,-271.37,0.00019998,3]
[345470326,1734277845562,-500.0,0.00019998,3]
[345470327,1734277845572,-500.0,0.00019998,3]
[345470328,1734277845717,-500.0,0.00019998,3]
[345470329,1734277845729,-227.77,0.00019998,3]
[345470330,1734277845739,-510.76,0.00019998,3]
[345470331,1734277845749,-500.0,0.00019998,3]
[345470332,1734277845759,-314.25,0.00019998,3]
[345470333,1734277845768,-500.0,0.00019998,3]
[345470334,1734277845778,-500.0,0.00019998,3]
[345470335,1734277845788,-606.46,0.00019998,3]
[345470336,1734277845797,-433.50145505,0.00019998,3]
[345470337,1734277845807,-500.0,0.00019998,3]
[345470338,1734277845817,-500.0,0.00019998,3]
[345470339,1734277845831,-500.0,0.00019998,3]
[345470340,1734277845843,-601.78,0.00019998,3]
[345470341,1734277845853,-601.78,0.00019998,3]
[345470342,1734277845866,-500.0,0.00019998,3]
[345470343,1734277845875,-500.0,0.00019998,3]
[345470344,1734277845885,-500.0,0.00019998,3]
[345470345,1734277845895,-547.73,0.00019998,3]
[345470346,1734277845905,-500.0,0.00019998,3]
[345470347,1734277845915,-500.0,0.00019998,3]
[345470348,1734277845924,-500.0,0.00019998,3]
[345470349,1734277845934,-405.74,0.00019998,3]
[345470350,1734277845945,-500.0,0.00019998,3]
[345470351,1734277845954,-208.88,0.00019998,3]
[345470352,1734277845963,-383.49,0.00019998,3]
[345470353,1734277845973,-397.97,0.00019998,3]
[345470354,1734277845982,-500.0,0.00019998,3]
[345470355,1734277845991,-302.52772227,0.00019998,3]
[345470356,1734277846001,-500.0,0.00019998,3]
[345470357,1734277846011,-500.0,0.00019998,3]
[345470358,1734277846021,-1000.0,0.00019999,2]
[345470359,1734277846031,-2000.0,0.00019999,2]
[345470360,1734277846041,-200.0,0.00019999,2]
[345470362,1734277846051,-415.58,0.00019999,3]
[345470364,1734277846060,-211.8,0.00019999,3]
[345470365,1734277846070,-170.7,0.00019999,3]
[345470366,1734277846084,-247.65,0.00019999,3]
[345470367,1734277846094,-187.52,0.00019999,3]
[345470368,1734277846104,-227.37,0.00019999,3]
[345470369,1734277846114,-282.96,0.00019999,3]
[345470370,1734277846123,-165.84,0.00019999,3]
[345470372,1734277846134,-251.59,0.00019999,3]
[345470373,1734277846143,-182.13,0.00019999,3]
[345470374,1734277846153,-246.18,0.00019999,3]
[345470375,1734277846162,-1021.36706913,0.00019999,5]
[345470376,1734277846171,-211.63,0.00019999,3]
[345470377,1734277846181,-208.32,0.00019999,3]
[345470378,1734277846190,-333.9,0.00019999,3]
[345470379,1734277846200,-385.89,0.00019999,3]
[345470381,1734277846209,-433.26551246,0.00019999,3]
[345470382,1734277846218,-596.08,0.00019999,3]
[345470383,1734277846228,-371.2,0.00019999,3]
[345470384,1734277846237,-299.9,0.00019999,3]
[345470385,1734277846246,-581.12,0.00019999,3]
[345470386,1734277846256,-375.34,0.00019999,3]
[345470387,1734277846265,-560.71,0.00019999,3]
[345470388,1734277846274,-604.85,0.00019999,3]
[345470389,1734277846283,-452.44,0.00019999,3]
[345470390,1734277846292,-576.69,0.00019999,3]
[345470391,1734277846302,-373.15,0.00019999,3]
[345470392,1734277846311,-611.38031389,0.00019999,2]
[345470393,1734277846321,-500.0,0.00019999,3]
[345470394,1734277846337,-310.07,0.00019999,3]
[345470395,1734277846346,-500.0,0.00019999,3]
[345470396,1734277846356,-500.0,0.00019999,3]
[345470397,1734277846368,-243.77,0.00019999,3]
[345470398,1734277846378,-500.0,0.00019999,3]
[345470399,1734277846387,-440.8,0.00019999,3]
[345470400,1734277846396,-500.0,0.00019999,3]
[345470401,1734277846406,-397.05,0.00019999,3]
[345470402,1734277846415,-186.47,0.00019999,3]
[345470403,1734277846424,-500.0,0.00019999,3]
[345470404,1734277846434,-562.49,0.00019999,3]
[345470405,1734277846443,-268.55,0.00019999,3]
[345470406,1734277846453,-257.94,0.00019999,3]
[345470407,1734277846462,-587.47,0.00019999,3]
[345470408,1734277846471,-241.35,0.00019999,3]
[345470409,1734277846481,-345.5,0.00019999,3]
[345470410,1734277846491,-639.14,0.00019999,3]
[345470411,1734277846501,-263.4,0.00019999,3]
[345470412,1734277846511,-293.94,0.00019999,3]
[345470413,1734277846521,-500.0,0.00019999,3]
[345470414,1734277846534,-500.0,0.00019999,3]
[345470415,1734277846544,-635.77,0.00019999,3]
[345470416,1734277846553,-624.41,0.00019999,3]
[345470417,1734277846563,-500.0,0.00019999,3]
[345470418,1734277846575,-456.64,0.00019999,3]
[345470419,1734277846588,-151.29,0.00019999,3]
[345470420,1734277846598,-250.11,0.00019999,3]
[345470421,1734277846607,-500.0,0.00019999,3]
[345470422,1734277846617,-500.0,0.00019999,3]
[345470423,1734277846627,-500.0,0.00019999,3]
[345470424,1734277846636,-495.51,0.00019999,3]
[345470425,1734277846647,-500.0,0.00019999,3]
[345470426,1734277846656,-222.42,0.00019999,3]
[345470427,1734277846666,-276.9,0.00019999,3]
[345470428,1734277846676,-500.0,0.00019999,3]
[345470429,1734277846685,-500.0,0.00019999,3]
[345470430,1734277846695,-500.0,0.00019999,3]
[345470431,1734277846705,-500.0,0.00019999,3]
[345470432,1734277846715,-500.0,0.00019999,3]
[345470433,1734277846724,-500.0,0.00019999,3]
[345470434,1734277846735,-500.0,0.00019999,3]
[345470435,1734277846745,-500.0,0.00019999,3]
[345470436,1734277846755,-500.0,0.00019999,3]
[345470437,1734277846764,-500.0,0.00019999,3]
[345470438,1734277846774,-500.0,0.00019999,3]
[345470439,1734277846783,-500.0,0.00019999,3]
[345470440,1734277846792,-500.0,0.00019999,3]
[345470441,1734277846802,-500.0,0.00019999,3]
[345470442,1734277846811,-500.0,0.00019999,3]
[345470443,1734277846821,-461.06,0.00019999,3]
[345470444,1734277846834,-500.0,0.00019999,3]
[345470445,1734277846843,-500.0,0.00019999,3]
[345470446,1734277846853,-500.0,0.00019999,3]
[345470447,1734277846862,-476.23,0.00019999,3]
[345470448,1734277846872,-1086.53,0.00019999,3]
[345470449,1734277846881,-1086.53,0.00019999,3]
[345470450,1734277846891,-1086.53,0.00019999,3]
[345470451,1734277846901,-1086.53,0.00019999,3]
[345470452,1734277846911,-1086.53,0.00019999,3]
[345470453,1734277846920,-1086.53,0.00019999,3]
[345470454,1734277846930,-1086.53,0.00019999,3]
[345470455,1734277846940,-1086.53,0.00019999,3]
[345470456,1734277846951,-1086.53,0.00019999,3]
[345470457,1734277846961,-1086.53,0.00019999,3]
[345470458,1734277846973,-1086.53,0.00019999,3]
[345470459,1734277846983,-1086.53,0.00019999,3]
[345470460,1734277846994,-1086.53,0.00019999,3]
[345470461,1734277847004,-1086.53,0.00019999,3]
[345470462,1734277847013,-1086.53,0.00019999,3]
[345470463,1734277847022,-1086.53,0.00019999,3]
[345470464,1734277847031,-1086.53,0.00019999,3]
[345470465,1734277847040,-1086.53,0.00019999,3]
[345470466,1734277847050,-1086.53,0.00019999,3]
[345470467,1734277847059,-1086.54,0.00019999,3]
[345470468,1734277847068,-500.0,0.00019999,3]
[345470469,1734277847079,-500.0,0.00019999,3]
[345470470,1734277847089,-500.0,0.00019999,3]
[345470471,1734277847099,-500.0,0.00019999,3]
[345470472,1734277847108,-500.0,0.00019999,3]
[345470473,1734277847117,-500.0,0.00019999,3]
[345470474,1734277847127,-500.0,0.00019999,3]
[345470475,1734277847137,-500.0,0.00019999,3]
[345470476,1734277847147,-241.99,0.00019999,3]
[345470477,1734277847157,-500.0,0.00019999,3]
[345470478,1734277847168,-500.0,0.00019999,3]
[345470479,1734277847179,-500.0,0.00019999,3]
[345470480,1734277847190,-500.0,0.00019999,3]
[345470481,1734277847199,-500.0,0.00019999,3]
[345470482,1734277847208,-500.0,0.00019999,3]
[345470483,1734277847218,-500.0,0.00019999,3]
[345470484,1734277847227,-500.0,0.00019999,3]
[345470485,1734277847236,-500.0,0.00019999,3]
[345470486,1734277847246,-265.02,0.00019999,3]
[345470487,1734277847255,-500.0,0.00019999,3]
[345470488,1734277847265,-500.0,0.00019999,3]
[345470489,1734277847274,-500.0,0.00019999,3]
[345470490,1734277847285,-500.0,0.00019999,3]
[345470491,1734277847295,-440.60355612,0.00019999,3]
[345470492,1734277847304,-500.0,0.00019999,3]
[345470493,1734277847314,-545.02,0.00019999,3]
[345470494,1734277847325,-215.69,0.00019999,3]
[345470495,1734277847337,-500.0,0.00019999,3]
[345470496,1734277847347,-500.0,0.00019999,3]
[345470497,1734277847356,-636.85,0.00019999,3]
[345470498,1734277847365,-500.0,0.00019999,3]
[345470499,1734277847375,-500.0,0.00019999,3]
[345470500,1734277847384,-500.0,0.00019999,3]
[345470501,1734277847394,-476.7,0.00019999,3]
[345470502,1734277847404,-500.0,0.00019999,3]
[345470503,1734277847415,-499.4,0.00019999,3]
[345470504,1734277847425,-388.22,0.00019999,3]
[345470505,1734277847435,-669.76,0.00019999,3]
[345470506,1734277847445,-669.76,0.00019999,3]
[345470507,1734277847455,-669.76,0.00019999,3]
[345470508,1734277847465,-669.76,0.00019999,3]
[345470509,1734277847475,-669.76,0.00019999,3]
[345470510,1734277847484,-669.76,0.00019999,3]
[345470511,1734277847495,-669.76,0.00019999,3]
[345470512,1734277847507,-669.76,0.00019999,3]
[345470513,1734277847518,-669.76,0.00019999,3]
[345470514,1734277847531,-669.76,0.00019999,3]
[345470515,1734277847540,-669.76,0.00019999,3]
[345470516,1734277847551,-500.0,0.00019999,3]
[345470517,1734277847563,-669.76,0.00019999,3]
[345470518,1734277847573,-500.0,0.00019999,3]
[345470519,1734277847587,-669.76,0.00019999,3]
[345470520,1734277847599,-500.0,0.00019999,3]
[345470521,1734277847609,-669.76,0.00019999,3]
[345470522,1734277847619,-500.0,0.00019999,3]
[345470523,1734277847629,-669.76,0.00019999,3]
[345470524,1734277847639,-500.0,0.00019999,3]
[345470525,1734277847649,-669.76,0.00019999,3]
[345470526,1734277847658,-251.34,0.00019999,3]
[345470527,1734277847667,-669.76,0.00019999,3]
[345470528,1734277847677,-669.76,0.00019999,3]
[345470529,1734277847687,-669.76,0.00019999,3]
[345470530,1734277847697,-669.94426854,0.00019999,3]
[345470531,1734277847706,-999.0,0.00019999,2]
[345470532,1734277847716,-500.0,0.00019999,3]
[345470533,1734277847727,-500.0,0.00019999,3]
[345470534,1734277847737,-195.88,0.00019999,3]
[345470535,1734277847747,-500.0,0.00019999,3]
[345470536,1734277847757,-500.0,0.00019999,3]
[345470537,1734277847767,-500.0,0.00019999,3]
[345470538,1734277847777,-500.0,0.00019999,3]
[345470539,1734277847787,-500.0,0.00019999,3]
[345470540,1734277847797,-500.0,0.00019999,3]
[345470541,1734277847806,-500.0,0.00019999,3]
[345470542,1734277847816,-500.0,0.00019999,3]
[345470543,1734277847825,-500.0,0.00019999,3]
[345470544,1734277847838,-500.0,0.00019999,3]
[345470545,1734277847848,-500.0,0.00019999,3]
[345470546,1734277847857,-500.0,0.00019999,3]
[345470547,1734277847867,-500.0,0.00019999,3]
[345470548,1734277847877,-500.0,0.00019999,3]
[345470549,1734277847886,-500.0,0.00019999,3]
[345470550,1734277847896,-500.0,0.00019999,3]
[345470551,1734277847906,-156.81,0.00019999,3]
[345470552,1734277847916,-500.0,0.00019999,3]
[345470553,1734277847926,-500.0,0.00019999,3]
[345470554,1734277847935,-500.0,0.00019999,3]
[345470555,1734277847944,-500.0,0.00019999,3]
[345470556,1734277847954,-500.0,0.00019999,3]
[345470557,1734277847963,-500.0,0.00019999,3]
[345470558,1734277847973,-259.91,0.00019999,3]
[345470559,1734277847982,-500.0,0.00019999,3]
[345470560,1734277847992,-500.0,0.00019999,3]
[345470561,1734277848002,-500.0,0.00019999,3]
[345470562,1734277848012,-500.0,0.00019999,3]
[345470563,1734277848021,-500.0,0.00019999,3]
[345470564,1734277848031,-500.0,0.00019999,3]
[345470565,1734277848041,-500.0,0.00019999,3]
[345470566,1734277848051,-196.55,0.00019999,3]
[345470567,1734277848062,-500.0,0.00019999,3]
[345470568,1734277848073,-500.0,0.00019999,3]
[345470569,1734277848086,-177.17,0.00019999,3]
[345470570,1734277848097,-500.0,0.00019999,3]
[345470571,1734277848107,-500.0,0.00019999,3]
[345470572,1734277848117,-500.0,0.00019999,3]
[345470573,1734277848126,-500.0,0.00019999,3]
[345470574,1734277848136,-500.0,0.00019999,3]
[345470575,1734277848146,-500.0,0.00019999,3]
[345470576,1734277848156,-460.42,0.00019999,3]
[345470577,1734277848166,-500.0,0.00019999,3]
[345470578,1734277848175,-500.0,0.00019999,3]
[345470579,1734277848185,-500.0,0.00019999,3]
[345470580,1734277848194,-500.0,0.00019999,3]
[345470581,1734277848204,-500.0,0.00019999,3]
[345470582,1734277848213,-500.0,0.00019999,3]
[345470583,1734277848222,-500.0,0.00019999,3]
[345470584,1734277848231,-500.0,0.00019999,3]
[345470585,1734277848240,-500.0,0.00019999,3]
[345470586,1734277848251,-500.0,0.00019999,3]
[345470587,1734277848261,-217.6,0.00019999,3]
[345470588,1734277848271,-500.0,0.00019999,3]
[345470589,1734277848280,-500.0,0.00019999,3]
[345470590,1734277848290,-500.0,0.00019999,3]
[345470591,1734277848300,-500.0,0.00019999,3]
[345470592,1734277848310,-500.0,0.00019999,3]
[345470593,1734277848321,-500.0,0.00019999,3]
[345470594,1734277848333,-500.0,0.00019999,3]
[345470595,1734277848343,-500.0,0.00019999,3]
[345470596,1734277848353,-500.0,0.00019999,3]
[345470597,1734277848363,-500.0,0.00019999,3]
[345470598,1734277848373,-500.0,0.00019999,3]
[345470599,1734277848383,-500.0,0.00019999,3]
[345470600,1734277848393,-383.49,0.00019999,3]
[345470601,1734277848404,-500.0,0.00019999,3]
[345470602,1734277848414,-500.0,0.00019999,3]
[345470603,1734277848423,-457.77698172,0.00019999,3]
[345470604,1734277848433,-601.78,0.00019999,3]
[345470605,1734277848443,-601.78,0.00019999,3]
[345470606,1734277848453,-601.78,0.00019999,3]
[345470607,1734277848463,-601.78,0.00019999,3]
[345470608,1734277848473,-601.78,0.00019999,3]
[345470609,1734277848483,-601.78,0.00019999,3]
[345470610,1734277848493,-601.78,0.00019999,3]
[345470611,1734277848503,-601.78,0.00019999,3]
[345470612,1734277848513,-601.78,0.00019999,3]
[345470613,1734277848527,-601.78,0.00019999,3]
[345470614,1734277848536,-601.78,0.00019999,3]
[345470615,1734277848546,-601.78,0.00019999,3]
[345470616,1734277848556,-601.78,0.00019999,3]
[345470617,1734277848567,-601.78,0.00019999,3]
[345470618,1734277848576,-601.78,0.00019999,3]
[345470619,1734277848590,-500.0,0.00019999,3]
[345470620,1734277848600,-601.78,0.00019999,3]
[345470621,1734277848610,-210.95,0.00019999,3]
[345470622,1734277848621,-601.78,0.00019999,3]
[345470623,1734277848631,-601.78,0.00019999,3]
[345470624,1734277848640,-601.78,0.00019999,3]
[345470625,1734277848651,-601.91,0.00019999,3]
[345470626,1734277848660,-567.23,0.00019999,3]
[345470627,1734277848672,-500.0,0.00019999,3]
[345470628,1734277848682,-500.0,0.00019999,3]
[345470629,1734277848692,-500.0,0.00019999,3]
[345470630,1734277848703,-481.17,0.00019999,3]
[345470631,1734277848713,-547.73,0.00019999,3]
[345470632,1734277848724,-547.73,0.00019999,3]
[345470633,1734277848734,-547.73,0.00019999,3]
[345470634,1734277848744,-547.73,0.00019999,3]
[345470635,1734277848754,-547.73,0.00019999,3]
[345470636,1734277848765,-547.73,0.00019999,3]
[345470637,1734277848775,-547.73,0.00019999,3]
[345470638,1734277848785,-547.73,0.00019999,3]
[345470639,1734277848794,-547.73,0.00019999,3]
[345470640,1734277848804,-547.73,0.00019999,3]
[345470641,1734277848813,-3000.0,0.00019999,2]
[345470642,1734277848823,-547.73,0.00019999,3]
[345470643,1734277848837,-547.73,0.00019999,3]
[345470644,1734277848846,-547.73,0.00019999,3]
[345470645,1734277848856,-547.73,0.00019999,3]
[345470646,1734277848865,-547.73,0.00019999,3]
[345470647,1734277848874,-547.73,0.00019999,3]
[345470648,1734277848884,-547.73,0.00019999,3]
[345470649,1734277848894,-547.73,0.00019999,3]
[345470650,1734277848903,-547.73,0.00019999,3]
[345470651,1734277848913,-547.85,0.00019999,3]
[345470652,1734277848923,-500.0,0.00019999,3]
[345470653,1734277848933,-500.0,0.00019999,3]
[345470654,1734277848943,-500.0,0.00019999,3]
[345470655,1734277848953,-500.0,0.00019999,3]
[345470656,1734277848963,-500.0,0.00019999,3]
[345470657,1734277848973,-424.08,0.00019999,3]
[345470658,1734277848982,-500.0,0.00019999,3]
[345470659,1734277848992,-500.0,0.00019999,3]
[345470660,1734277849001,-500.0,0.00019999,3]
[345470661,1734277849011,-500.0,0.00019999,3]
[345470662,1734277849021,-500.0,0.00019999,3]
[345470663,1734277849031,-500.0,0.00019999,3]
[345470664,1734277849041,-500.0,0.00019999,3]
[345470665,1734277849050,-500.0,0.00019999,3]
[345470666,1734277849059,-500.0,0.00019999,3]
[345470667,1734277849069,-500.0,0.00019999,3]
[345470668,1734277849079,-500.0,0.00019999,3]
[345470669,1734277849094,-500.0,0.00019999,3]
[345470670,1734277849104,-500.0,0.00019999,3]
[345470671,1734277849115,-500.0,0.00019999,3]
[345470672,1734277849125,-500.0,0.00019999,3]
[345470673,1734277849136,-500.0,0.00019999,3]
[345470674,1734277849145,-500.0,0.00019999,3]
[345470675,1734277849155,-500.0,0.00019999,3]
[345470676,1734277849164,-421.46102963,0.00019999,3]
[345470677,1734277849291,-500.0,0.00019999,3]
[345470678,1734277849322,-500.0,0.00019999,3]
[345470679,1734277849333,-128.22215873,0.00019999,3]
[345470680,1734277849488,-371.77784127,0.00019999,3]
[345470681,1734277849499,-500.0,0.00019999,3]
[345470682,1734277849509,-500.0,0.00019999,3]
[345470683,1734277849520,-500.0,0.00019999,3]
[345470684,1734277849531,-500.0,0.00019999,3]
[345470685,1734277849541,-500.0,0.00019999,3]
[345470686,1734277849551,-500.0,0.00019999,3]
[345470687,1734277849562,-500.0,0.00019999,3]
[345470688,1734277849572,-414.72787882,0.00019999,3]
[345470689,1734277849585,-500.0,0.00019999,3]
[345470690,1734277849596,-500.0,0.00019999,3]
[345470691,1734277849606,-500.0,0.00019999,3]
[345470692,1734277849616,-216.53,0.00019999,3]
[345470693,1734277849626,-500.0,0.00019999,3]
[345470694,1734277849635,-500.0,0.00019999,3]
[345470695,1734277849645,-500.0,0.00019999,3]
[345470696,1734277849654,-500.0,0.00019999,3]
[345470697,1734277849663,-500.0,0.00019999,3]
[345470698,1734277849673,-515.47,0.00019999,3]
[345470699,1734277849682,-500.0,0.00019999,3]
[345470700,1734277849692,-500.0,0.00019999,3]
[345470701,1734277849702,-500.0,0.00019999,3]
[345470702,1734277849711,-371.62,0.00019999,3]
[345470703,1734277849721,-510.0,0.0002,2]
[345470704,1734277849730,-51740.64437011,0.0002,2]
[345470705,1734277849742,-120755.18862811,0.0002,2]
[345470706,1734277849843,-3951.7,0.00019699,2]
[345470707,1734277849858,-660.51501,0.00019699,2]
[345470708,1734277849871,-379.5795368,0.00019699,2]
[345470709,1734277849882,-1760.00000008,0.00019699,2]
[345470710,1734277849894,-403.37,0.00019699,2]
[345470711,1734277849906,-1028.0,0.00019699,2]
[345470712,1734277849917,-3703.97155312,0.00019699,2]
[345470713,1734277849928,-7721.74366193,0.0002,2]
[345470714,1734277849940,-4419.06995033,0.0002,2]
[345470715,1734277849952,-510.00939672,0.0002,2]
[345470716,1734277849964,-287.53356952,0.0002,2]
[345470717,1734277849979,-3697.3752504,0.0002,2]
[345470718,1734277849990,-3906.59760001,0.0002,2]
[345470719,1734277850002,-4311.534494,0.0002,2]
[345470720,1734277850013,-4654.80581678,0.0002,2]
[345470721,1734277850032,-1574.79931713,0.0002,2]
[345470722,1734277850044,-26818.72952599,0.0002,2]
[345470723,1734277850055,-28942.20515937,0.0002,2]
[345470724,1734277850066,-87621.62830935,0.0002,2]
[345470725,1734277854918,160.37,0.00013699,2]
[345470730,1734278480390,157.53,0.00010137,2]
[345470745,1734279031851,-478.39908182,0.00016435,2]
[345470746,1734279031863,-810.64091818,0.00016435,2]
[345470747,1734279031874,-150.0,0.00018,2]
[345470748,1734279031885,-150.0,0.00018,2]
[345470749,1734279031898,-150.0,0.00018,2]
[345470750,1734279031907,-152.35171148,0.00018,2]
[345470751,1734279031917,-250.0,0.0001817,2]
[345470752,1734279031927,-250.0,0.00018195,2]
[345470753,1734279031937,-229.6833645,0.0001828,2]
[345470754,1734279031949,-770.3166355,0.0001828,2]
[345470755,1734279032122,-164.52,0.00018392,2]
[345470756,1734279032133,-445.67,0.00018462,2]
[345470757,1734279032142,-250.0,0.00018498,2]
[345470758,1734279032152,-200.0,0.00018498,2]
[345470759,1734279032161,-757.33,0.0001865,2]
[345470760,1734279032171,-500.0,0.00018664,2]
[345470761,1734279032180,-151.13,0.00018664,2]
[345470762,1734279032190,-300.0,0.00018698,2]
[345470763,1734279032201,-1289.04,0.00018699,2]
[345470764,1734279032210,-16700.21,0.00018699,2]
[345470765,1734279032219,-200.0,0.00018797,2]
[345470766,1734279032228,-6702.14165531,0.00018824,2]
[345470767,1734279032238,-2965.1,0.00018841,2]
[345470768,1734279032247,-150.0,0.00018853,2]
[345470769,1734279032257,-850.0,0.00018899,2]
[345470770,1734279032267,-73399.96797513,0.000189,2]
[345470771,1734279032282,-16604.41269988,0.000189,2]
[345470772,1734279032294,-3999.29,0.000189,2]
[345470773,1734279032309,-4878.86754,0.000189,2]
[345470774,1734279032324,-2051.8,0.000189,2]
[345470793,1734279037754,-469.19,0.00018031,2]
[345470794,1734279037763,-9280.16814922,0.000189,2]
[345470795,1734279037775,-1491.65969763,0.000189,2]
[345470796,1734279037786,-10070.50858,0.000189,2]
[345470797,1734279037806,-14716.63570235,0.000189,2]
[345470798,1734279037860,-1085.0219015,0.000189,2]
[345470799,1734279037871,-765.88163112,0.000189,2]
[345470800,1734279037882,-1750.0,0.00018924,2]
[345470801,1734279037891,-6702.14165528,0.00018944,2]
[345470802,1734279037902,-713.31369,0.00019,2]
[345470803,1734279037911,-344.784,0.00019,2]
[345470804,1734279037921,-150.0,0.00019,2]
[345470805,1734279037930,-160.2,0.00019,2]
[345470806,1734279037941,-6702.14165528,0.00019063,2]
[345470807,1734279037950,-386.21,0.00019083,2]
[345470808,1734279037961,-175.65,0.00019175,2]
[345470809,1734279037971,-320.79,0.00019223,2]
[345470810,1734279037981,-300.0,0.000194,7]
[345470811,1734279037990,-600.0,0.000195,7]
[345470812,1734279038000,-6900.74701073,0.0001959,2]
[345470813,1734279038015,-1756.95558927,0.0001959,2]
[345470814,1734279038023,-900.0,0.000196,7]
[345470815,1734279038032,-2566.644,0.0001964,2]
[345470816,1734279038042,-209.119,0.0001964,2]
[345470817,1734279038051,-500.0,0.00019673,2]
[345470818,1734279038060,-162.56,0.0001968,2]
[345470819,1734279038070,-232.41800722,0.0001968,2]
[345470820,1734279038079,-500.0,0.00019688,3]
[345470821,1734279038087,-500.0,0.00019688,3]